Cogmind - Beta 9.6 @@@ ROGUE MODE // 2020.07.16 @ 18:19:40 Player: Lyft Result: Destroyed by 8R-AWN with 8R-AWN's Boregun Performance ------------- Evolutions (0) 0 Regions Visited (3) 600 Robots Destroyed (18) 90 Value Destroyed (287) 287 Prototype IDs (22) 440 Alien Tech Used (0) 0 Bonus (397) 397 TOTAL SCORE: 1814 Bonus ------- Follower Combat Kills 120 Aligned with FarCom 300 Friendly Fire -23 Cogmind --------- Core Integrity 0/250 Matter 298/300 Energy 100/100 System Corruption 0% Temperature Cool (0) Movement Rolling (120) Ox3 Location -10/Exiles Parts ------- > --- POWER (1) -------- (None) > --- PROPULSION (2) --- Armored Wheel Armored Wheel > --- UTILITY (2) ------ Humpback > --- WEAPON (2) ------- Light Assault Rifle Light Assault Rifle > --- INVENTORY (24) --- (None) Peak State ------------ > --- POWER ------------ Light Nuclear Core > --- PROPULSION ------- Armored Wheel Armored Wheel > --- UTILITY ---------- Humpback > --- WEAPON ----------- Light Assault Rifle Light Assault Rifle > --- INVENTORY -------- Large Storage Unit High-capacity Storage Unit High-capacity Storage Unit Humpback Large Matter Pod Large Matter Pod High-capacity Matter Pod Salvage Targeting Computer Light Assault Rifle Light Assault Rifle Light Assault Rifle [Rating: 12] Favorites ----------- Power Ion Engine Engine Ion Engine Power Core Light Nuclear Core Propulsion Light Treads Treads Light Treads Leg Aluminum Leg Wheel Armored Wheel Utility Large Storage Unit Storage Large Storage Unit Weapon Assault Rifle Energy Gun Small Laser Ballistic Gun Assault Rifle Launcher Grenade Launcher Build | -11 -10 -10 -10 ------- Run | Scr Mat Min Exi Slots Evolved . | . . . . Power . | . . . . Propulsion . | . . . . Utility . | . . . . Weapon . | . . . . Parts Attached 32 | 4 11 4 13 Power 2 | . 1 . 1 Engine 1 | . 1 . . Core 1 | . . . 1 Reactor . | . . . . Propulsion 13 | 2 7 2 2 Treads 5 | 1 3 1 . Leg . | . . . . Wheel 8 | 1 4 1 2 Hover . | . . . . Flight . | . . . . Utility 8 | 1 3 . 4 Device . | . . . . Storage 8 | 1 3 . 4 Processor . | . . . . Hackware . | . . . . Protection . | . . . . Artifact . | . . . . Weapon 9 | 1 . 2 6 Energy Gun . | . . . . Energy Cannon . | . . . . Ballistic Gun 8 | 1 . 1 6 Ballistic Cannon . | . . . . Launcher 1 | . . 1 . Special Weapon . | . . . . Impact Weapon . | . . . . Slashing Weapon . | . . . . Piercing Weapon . | . . . . Special Melee Weapon . | . . . . Unidentified Prototypes . | . . . . Parts Lost 15 | . . . 15 Power 3 | . . . 3 Propulsion 4 | . . . 4 Utility . | . . . . Weapon 8 | . . . 8 Highest Loss Streak 6 | . . . 6 Average Slot Usage (%) 94 | . 100 100 83 Engine 13 | . 14 14 12 Treads 14 | . 17 14 12 Wheel 13 | . 10 13 15 Storage 23 | . 28 28 15 Ballistic Gun 27 | . 28 27 26 Naked Turns . | . . . . Heaviest Build 89 | 15 57 57 89 Greatest Support 40 | 16 40 12 24 Greatest Overweight (x) 7 | . 4 4 7 Average Overweight (x) 3 | . . 4 6 Largest Inventory Capacity 24 | 8 18 18 24 Average Capacity 17 | 6 12 18 23 Most Carried 20 | 6 16 18 20 Average Carried 14 | 4 10 17 16 Final Capacity 24 | 8 18 18 24 Final Carried 18 | 4 16 18 . Class Distribution -------------------- 68% | Mutant 31% | Hauler-Mutant Dominant Class ---------------- Mutant | -10/Materials Mutant | -10/Mines Hauler-Mutant | -10/Exiles Resources | -11 -10 -10 -10 ----------- Run | Scr Mat Min Exi Matter Collected 1135 | 270 163 313 389 Remotely . | . . . . Salvage Created 448 | 100 236 70 42 Parts 54 | 3 33 5 13 Haulers Intercepted . | . . . . Recyclers Shooed . | . . . . Parts Field Recycled . | . . . . Retrieved Matter . | . . . . Parts Self-Destructed . | . . . . Prevented . | . . . . Kills | -11 -10 -10 -10 ------- Run | Scr Mat Min Exi Combat Hostiles Destroyed 13 | . 10 2 1 Guns 11 | . 10 . 1 AOE 2 | . . 2 . Classes Destroyed 7 | 1 4 1 1 Builder 1 | . 1 . . Tunneler 1 | . . 1 . Recycler 1 | 1 . . . Watcher 1 | . 1 . . Swarmer 8 | . 8 . . Grunt 4 | . 2 2 . Assembled 1 | . . . 1 Best Kill Streak 5 | 1 5 2 2 Combat Bots Only 5 | . 5 2 1 Max Kills in Single Turn 1 | 1 1 1 1 Gunslinging . | . . . . Exploded 1 | . . 1 . Melee . | . . . . Uniques/NPCs Destroyed 1 | . . . 1 EX-HEX (-10/Exiles) Combat | -11 -10 -10 -10 -------- Run | Scr Mat Min Exi Damage Taken 1752 | . 269 85 1398 Core 252 | . 64 22 166 Absorbed by Shields . | . . . . Core Remaining (%) 100 | 100 . . . Volleys Fired 98 | 5 28 10 55 Largest 2 | 2 2 2 2 Hottest 40 | 40 40 40 40 Shots Fired 190 | 10 56 14 110 Gun 184 | 10 56 8 110 Cannon . | . . . . Launcher 6 | . . 6 . Special . | . . . . Kinetic 184 | 10 56 8 110 Thermal . | . . . . Explosive 6 | . . 6 . Electromagnetic . | . . . . Robot Hit Streak 15 | 4 11 6 15 Robot Miss Streak 4 | 1 4 2 2 Penetration Max . | . . . . Secondary Targets 1 | . 1 . . Max Gunslinging Chain 1 | . 1 . . Shots Hit Robots 129 | 7 30 6 86 Core Hits 40 | 2 14 5 19 Critical Hits . | . . . . Critical Kills . | . . . . Critical Parts Destroyed . | . . . . Melee Attacks . | . . . . Impact . | . . . . Slashing . | . . . . Piercing . | . . . . Sneak Attacks . | . . . . Combat Hostiles . | . . . . Follow-up Attacks . | . . . . Damage Inflicted 1538 | 65 352 292 829 Guns 1309 | 65 352 63 829 Cannons . | . . . . Explosions 229 | . . 229 . Melee . | . . . . Ramming . | . . . . Kinetic 1309 | 65 352 63 829 Thermal . | . . . . Explosive 229 | . . 229 . Electromagnetic . | . . . . Impact . | . . . . Slashing . | . . . . Piercing . | . . . . Highest Corruption . | . . . . Average Corruption . | . . . . Corruption Purged . | . . . . Overload Shots . | . . . . Overflow Damage . | . . . . Projectiles . | . . . . Explosions . | . . . . Melee . | . . . . Knockbacks . | . . . . Impact . | . . . . Kinetic . | . . . . Secondary . | . . . . Self-Inflicted Damage 22 | . 22 . . Shots 1 | . 1 . . Rammed . | . . . . Targets Rammed . | . . . . Kicked . | . . . . Crushed . | . . . . Highest Temperature 20 | . 2 4 20 Average Temperature 6 | . 2 4 7 Received Heat Transfer 336 | . 51 45 240 Siege Activations . | . . . . Robots Corrupted . | . . . . Combat Hostiles . | . . . . Parts Fried . | . . . . Impact Corruptions . | . . . . Robots Melted . | . . . . Combat Hostiles . | . . . . Parts Melted . | . . . . Heat Transferred . | . . . . Parts Sabotaged . | . . . . Parts Stolen . | . . . . Parts Stripped . | . . . . Power Chain Reactions . | . . . . Missiles Intercepted . | . . . . Alert | -11 -10 -10 -10 ------- Run | Scr Mat Min Exi Peak Influence 168 | 5 168 112 . Average Influence 58 | 2 53 65 . Maximum Alert Level . | . . . . Low Security (%) 100 | 100 100 100 . Level 1 . | . . . . Level 2 . | . . . . Level 3 . | . . . . Level 4 . | . . . . Level 5 . | . . . . High Security . | . . . . Max Security . | . . . . Squads Dispatched . | . . . . Investigation . | . . . . Extermination . | . . . . Reinforcement . | . . . . Assault . | . . . . Garrison . | . . . . Intercept . | . . . . Construction Impeded . | . . . . Haulers Reinforced . | . . . . Stealth | -11 -10 -10 -10 --------- Run | Scr Mat Min Exi Distress Signals . | . . . . Communications Jammed . | . . . . Distress Signals . | . . . . Times Spotted 33 | . 20 5 8 Peak Tracking Total 9 | . 5 2 9 Tactical Retreats 1 | . 1 . . Traps | -11 -10 -10 -10 ------- Run | Scr Mat Min Exi Traps Triggered . | . . . . Indirectly . | . . . . Trap Hack Attempts . | . . . . Triggered . | . . . . Disarmed . | . . . . Reprogrammed . | . . . . Reused . | . . . . Traps Extracted . | . . . . Installed . | . . . . Triggered . | . . . . Machines | -11 -10 -10 -10 ---------- Run | Scr Mat Min Exi Machines Disabled 3 | . 1 . 2 Max in Single Turn 1 | . 1 . 1 Machines Sabotaged . | . . . . Garrisons Compromised . | . . . . Overloaded Fab Kills . | . . . . Fab Network Shutdowns . | . . . . Hacking | -11 -10 -10 -10 --------- Run | Scr Mat Min Exi Machines Accessed 7 | . 5 . 2 Terminals 5 | . 5 . . Fabricators . | . . . . Repair Stations . | . . . . Recycling Units . | . . . . Scanalyzers . | . . . . Garrison Access . | . . . . Total Hacks 19 | . 17 . 2 Successful 10 | . 8 . 2 Failed 9 | . 9 . . Catastrophic . | . . . . Database Lockouts . | . . . . Manual 17 | . 16 . 1 Terminals 17 | . 17 . . Fabricators . | . . . . Repair Stations . | . . . . Recycling Units . | . . . . Scanalyzers . | . . . . Garrison Access . | . . . . Terminal Hacks 5 | . 3 . 2 Record 1 | . . . 1 Terminal Index 1 | . 1 . . Locate Traps 2 | . 2 . . EX-Prototype ID Bank 1 | . . . 1 Fabricator Hacks . | . . . . Repair Station Hacks . | . . . . Recycling Unit Hacks . | . . . . Scanalyzer . | . . . . Garrison Access Hacks . | . . . . Unauthorized Hacks 5 | . 5 . . Terminals 5 | . 5 . . Track 1 | . 1 . . Botnet 2 | . 2 . . Operators 2 | . 2 . . Fabricators . | . . . . Repair Stations . | . . . . Recycling Units . | . . . . Scanalyzers . | . . . . Garrison Access . | . . . . Data Cores Recovered . | . . . . Used . | . . . . Hacking Detections 5 | . 5 . . Full Trace Events . | . . . . Feedback Events . | . . . . Feedback Blocked . | . . . . Robot Schematics Acquired . | . . . . Robots Built . | . . . . Matter . | . . . . Time . | . . . . Total Robot Build Rating . | . . . . Part Schematics Acquired . | . . . . Parts Built . | . . . . Matter . | . . . . Time . | . . . . Total Part Build Rating . | . . . . Parts Repaired . | . . . . Time . | . . . . Parts Recycled . | . . . . Recycled Matter . | . . . . Retrieved Matter . | . . . . Retrieved Components . | . . . . Parts Scanalyzed . | . . . . Part Schematics Acquired . | . . . . Parts Damaged . | . . . . Bothacking | -11 -10 -10 -10 ------------ Run | Scr Mat Min Exi Used RIF Installer . | . . . . Robots Hacked . | . . . . Non-combat . | . . . . Combat . | . . . . Robot Hacks Applied . | . . . . Relay Couplers Released . | . . . . Robots Rewired . | . . . . Allies Hacked . | . . . . Hacks Repelled . | . . . . Allies | -11 -10 -10 -10 -------- Run | Scr Mat Min Exi Total Allies 2 | . . 2 . Largest Group 2 | . . 2 2 Highest-Rated Group 45 | . . 45 45 Highest-Rated Ally 31 | . . 31 31 Total Orders . | . . . . Ally Attacks 17 | . . 11 6 Total Damage 488 | . . 190 298 Kills 6 | . . 4 2 Allies Corrupted . | . . . . Allies Melted . | . . . . Turrets Deployed 3 | . . . 3 Intel | -11 -10 -10 -10 ------- Run | Scr Mat Min Exi Robot Analysis Total . | . . . . Derelict Logs Recovered 2 | . . 2 . Drone Launches . | . . . . Drone Recoveries . | . . . . Exploration | -11 -10 -10 -10 ------------- Run | Scr Mat Min Exi Turns Passed 2850 | 34 903 912 1001 Spaces Moved 1856 | 13 658 655 530 Core . | . . . . Treads 73 | . 73 . . Legs . | . . . . Wheels 1783 | 13 585 655 530 Hover . | . . . . Flight . | . . . . Fastest Speed 100 | 100 100 130 120 Average Speed 131 | 100 115 130 154 Slowest Speed 180 | 100 180 130 160 Overloaded Moves . | . . . . Propulsion Burnouts . | . . . . Robots Hopped 5 | . . . 5 Cave-ins Triggered . | . . . . Exploration Rate (%) 61 | 3 66 99 76 Regions Visited 3 Branch Regions 2 Pre-discovered Areas 2 | . . 1 1 Known Exits Taken . | . . . . Unknown Exits Taken 3 | 1 1 1 . Scrap Searched 1 | . . 1 . Spaces Dug . | . . . . Terrain Destroyed 7 | . . 7 . Melee . | . . . . Projectile . | . . . . AOE 7 | . . 7 . Actions | -11 -10 -10 -10 --------- Run | Scr Mat Min Exi Total 2087 | 23 746 700 618 Wait 56 | . 28 28 . Move 1843 | 12 657 654 520 Hop 5 | . . . 5 Pick Up 36 | . 15 3 18 Fast Attach 1 | 1 . . . Attach 14 | 2 1 . 11 Detach 1 | . . . 1 Swap 17 | 1 10 4 2 Drop 16 | 2 7 1 6 Fire 98 | 5 28 10 55 Melee . | . . . . Ram . | . . . . Kick . | . . . . Crush . | . . . . Escape Stasis . | . . . . Rewire . | . . . . Trap . | . . . . Miscellaneous . | . . . . Route ------- -11/Scrapyard -10/Materials (discovered 3 exits: [*Mat x2] / [*Min]) -10/Mines (discovered 3 exits: [*Mat x2] / *Exi) -10/Exiles History --------- Turn | Location | Event 21 | -11/Scrapyard | Discovered new exit (range 2) 35 | -11/Scrapyard | Entered Materials 171 | -10/Materials | Discovered new exit (range 16) 277 | -10/Materials | Discovered new exit (range 15) 315 | -10/Materials | Build established: Mutant 929 | -10/Materials | Discovered new exit (range 5) 938 | -10/Materials | Entered Mines 1171 | -10/Mines | Discovered new exit (range 5) 1238 | -10/Mines | Learned location of Storage (-7) 1275 | -10/Mines | Learned Materials stockpile data 1379 | -10/Mines | Learned Materials security intel 1385 | -10/Mines | Discovered new exit (range 12) 1831 | -10/Mines | Deemed a non-threat by the Exiles lab entrance 1832 | -10/Mines | Discovered new exit (range 5) 1850 | -10/Mines | Entered Exiles 1850 | -10/Exiles | Accompanied by 2 allies 1880 | -10/Exiles | Led the pair of lost Derelicts to a safe place 1886 | -10/Exiles | Met 8R-AWN 1906 | -10/Exiles | Met EX-HEX 2003 | -10/Exiles | Lost 6 parts (1p2n3w) 2042 | -10/Exiles | Met EX-DEC 2074 | -10/Exiles | Visited The Gauntlet 2150 | -10/Exiles | Learned location of Zion (-7) 2260 | -10/Exiles | Build established: Hauler-Mutant 2380 | -10/Exiles | Met EX-BIN 2398 | -10/Exiles | Aligned with FarCom system 2400 | -10/Exiles | Given EX-Vault access code 2436 | -10/Exiles | Opened EX-Vault 2452 | -10/Exiles | DAS Turret deployed 2454 | -10/Exiles | Found Deploy-a-Sentry 2458 | -10/Exiles | Found Deploy-a-Sentry 2506 | -10/Exiles | Warned to stay clear of 0b10 Research branches 2576 | -10/Exiles | DAS Turret deployed 2585 | -10/Exiles | DAS Turret deployed 2690 | -10/Exiles | Attacked by the Exiles 2704 | -10/Exiles | Destroyed EX-HEX 2733 | -10/Exiles | Core integrity fell below 50% 2789 | -10/Exiles | Lost 6 parts (1p2n3w) 2848 | -10/Exiles | Core integrity fell below 20% 2851 | -10/Exiles | Destroyed by 8R-AWN with 8R-AWN's Boregun Last Messages --------------- 02808_ Penetrated by HV Slug. 02808_ HV Slug penetrates Earth. 02813_ HV Slug penetrates Wall. 02817_ Penetrated by HV Slug. 02817_ HV Slug penetrates Earth. 02817_ Penetrated by HV Slug. 02821_ HV Slug penetrates Machine. 02821_ Penetrated by HV Slug. 02821_ HV Slug penetrates Earth. 02825_ Penetrated by HV Slug. 02834_ HV Slug penetrates Wall. 02838_ Penetrated by HV Slug. 02838_ Lgt. Assault Rifle destroyed. 02838_ Penetrated by HV Slug. 02842_ Critical hit. 02842_ Lgt. Assault Rifle destroyed. 02842_ Penetrated by HV Slug. 02844_ Extracted 145 matter. 02847_ Extracted 2 matter. 02847_ Penetrated by HV Slug. Map ----- +----------------------------------------------------+ | """#???????????????????????????????????? | | """#???????????????????????????????????? | | """"???????????????????????????????????? | | """#???????????????????????????????????? | | "X" """????????????????????????????????????? | | """ #???????????????????????????????????? | | """""""""#???????????????????????????????????? | | ###########???????????????????????????????????? | | #?????????????????????????????????????????????? | | #?????????????????????????????????????????????? | | ##????????????????????????????????????????????? | | ##???###########?????????????????????????????? | | #####"""""""""##????????????????????????????? | | " """ """"##???????????????????????????? | | "" " #???????????????????????????? | | " """#???????????????????????????? | | " "#???????????#####???????????? | | " "##?????????##" #???????????? | | ""###???????#" #???????????? | | " """#??????##" ##??????????? | | """ "#????### ###????????# | | ####"" ##???# ########## | | ???##"" ! ##?## #""""## | | ????#"""" =!! ### * | | ???##"" !!%!! !g! ## * | | ####"""" !!!! % !@[ #### | | #""" ! %!!! ""#?#"""""#### | | "" ; ##?#######??#### | | ######??????????????### | | ##?????????????????????? | | ;#??????????????????????? | | "" " ";#??????????????????????? | | ##""" " ""# %"#;#??????????????????????? | | ###### " """## "" ## #??????????????????????? | | #????###""""##;###;####? #??????????????????????? | | ####???###### #??# ????? #??????????????????????? | | " #???????? ????#?????? #??????????????????????? | | #???????????????????? ???????????????????????? | | "#???????????????????? ???????????????????????? | | ""!"#???????????????????? ???????????????????????? | | #####???????????????????? ???????????????????????? | | ?????????????????????????????????????????????????? | | ?????????????????????????????????????????????????? | | ?????????????????????????????????????????????????? | | ?????????????????????????????????????????????????? | | ?????????????????????????????????????????????????? | | ?????????????????????????????????????????????????? | | ?????????????????????????????????????????????????? | | ?????????????????????????????????????????????????? | | ?????????????????????????????????????????????????? | +----------------------------------------------------+ Best States ------------- Heat Dissipation 25 Energy Generation 14 Energy Capacity 250 Matter Stores 300 Matter Capacity 300 Sight Range 16 Terrain Scan Density 10 Evasion (%) 40 Recoil Reduction 2 Item Schematics ----------------- None Robot Schematics ------------------ None Fabricated ------------ Nothing Alien Tech Used ----------------- None Achievements -------------- None Challenges ------------ None Game ------ Seed MiningElectronNullifier Manual? 0 Play Time 00:26:05 Cumulative 16.4 hours Start 2020.07.16 @ 17:55:04 End 2020.07.16 @ 18:19:40 Sessions 1 Manual Loads 0 Difficulty Rogue Special Mode None Game No. 36 Rogue 34 Adventurer 1 Explorer 1 Win Type - Total 0 Types 0/0/0/0/0/0/0 Lore% 22 Gallery% 27 Achievement% 19 Wizard Run 0 Options --------- ASCII 0 Keyboard 0 Movement Mouse Keybinds 0 Fullscreen 2 Font 24/Terminus Map View 76x50 Tactical HUD 1 Map Filters NONE Filters NONE Steam 1 RUN: f6ca9acd-b2f2-4320-a15f-5007d2ea5a8f